[Event "94th Tradewise Hastings Congress"]
[Site "Hastings"]
[Date "2019.01.05"]
[Round "9"]
[White "Willson, Ollie"]
[Black "Boswell, Jacob Connor"]
[Result "1/2-1/2"]
[ECO "E05"]
[WhiteElo "2081"]
[BlackElo "1858"]
[Annotator "NA"]
[PlyCount "98"]
[EventDate "2018.12.28"]
[EventType "swiss"]
[EventCountry "ENG"]
[SourceTitle "playchess.com"]
[Source "ChessBase"]
[SourceQuality "1"]
[TimeControl "40/6000+30:3000+30"]

1. d4 {[%emt 0:00:00]} Nf6 {[%emt 0:00:00]} 2. c4 {[%emt 0:00:00]} e6 {[%emt 0:00:00]} 3. Nf3 {[%emt 0:00:00]} d5 {[%emt 0:00:02]} 4. g3 {[%emt 0:00:00]} Be7 {[%emt 0:00:08]} 5. Bg2 {[%emt 0:00:07]} O-O {[%emt 0:00:18]} 6. O-O {[%emt 0:00:09]} dxc4 {[%emt 0:00:06]} 7. Qc2 {[%emt 0:00:16]} a6 {[%emt 0:00:14]} 8. a4 {[%emt 0:00:04]} Bd7 {[%emt 0:00:09]} 9. Qxc4 {[%emt 0:00:07]} Bc6 {[%emt 0:02:22]} 10. Bf4 {[%emt 0:01:25]} Nbd7 {[%emt 0:04:44]} 11. Nc3 {[%emt 0:03:53]} Bd6 {[%emt 0:08:06]} 12. Bd2 {[%emt 0:10:11]} e5 {[%emt 0:05:56]} 13. dxe5 {[%emt 0:12:43]} Bxe5 {[%emt 0:05:21]} 14. Rfd1 {[%emt 0:07:15]} Qe7 {[%emt 0:04:01]} 15. Nxe5 {[%emt 0:09:32]} Nxe5 {[%emt 0:00:47]} 16. Qf4 {[%emt 0:07:32]} Bxg2 {[%emt 0:06:41]} 17. Kxg2 {[%emt 0:00:49]} Rfe8 {[%emt 0:01:42]} 18. Qf5 {[%emt 0:15:51]} c6 {[%emt 0:15:47]} 19. Bg5 {[%emt 0:02:07]} Ned7 {[%emt 0:08:40]} 20. Rd4 {[%emt 0:06:50]} h6 {[%emt 0:02:53]} 21. Bf4 {[%emt 0:04:52]} Qc5 {[%emt 0:04:08]} 22. Qd3 {[%emt 0:09:19]} Ne5 {[%emt 0:03:28]} 23. Bxe5 {[%emt 0:00:34]} Qxe5 {[%emt 0:01:28]} 24. Rd1 {[%emt 0:02:00]} Re7 {[%emt 0:04:48]} 25. Qc4 {[%emt 0:03:30]} Rae8 {[%emt 0:02:25]} 26. e3 {[%emt 0:01:43]} Re6 {[%emt 0:05:09]} 27. b4 {[%emt 0:00:47]} b5 {[%emt 0:04:58]} 28. Qd3 {[%emt 0:01:36]} g6 {[%emt 0:01:31]} 29. Ne2 {[%emt 0:02:11]} c5 {[%emt 0:03:39]} 30. bxc5 {[%emt 0:00:26]} Qxc5 {[%emt 0:00:12]} 31. Nf4 {[%emt 0:00:54]} Re4 {[%emt 0:00:06]} 32. axb5 {[%emt 0:02:00]} Rxd4 {[%emt 0:01:50]} 33. Qxd4 {[%emt 0:03:35]} Qxd4 {[%emt 0:00:22]} 34. Rxd4 {[%emt 0:00:47]} axb5 {[%emt 0:01:50]} 35. Rd6 {[%emt 0:01:27]} Kg7 {[%emt 0:01:18]} 36. Rb6 {[%emt 0:00:52]} Re5 {[%emt 0:01:10]} 37. Kf3 {[%emt 0:00:40]} h5 {[%emt 0:01:33]} 38. Nd3 {[%emt 0:00:49]} Rd5 {[%emt 0:01:52]} 39. Nf4 {[%emt 0:01:11]} Rf5 {[%emt 0:00:40]} 40. h4 {[%emt 0:00:59]} Nd5 {[%emt 0:06:40]} 41. Rxb5 {[%emt 0:08:19]} Nxe3 {[%emt 0:00:36]} 42. Rb7 {[%emt 0:01:08]} Nd5 {[%emt 0:00:32]} 43. Rb5 {[%emt 0:00:44]} Ne7 {[%emt 0:00:25]} 44. Rxf5 {[%emt 0:01:08]} Nxf5 {[%emt 0:00:09]} 45. Ke4 {[%emt 0:00:33]} Kf6 {[%emt 0:01:02]} 46. Nd5+ {[%emt 0:03:21]} Ke6 {[%emt 0:00:43]} 47. Nc7+ {[%emt 0:01:26]} Kd6 {[%emt 0:02:02]} 48. Nb5+ {[%emt 0:00:47]} Ke6 {[%emt 0:00:12]} 49. Kf4 {[%emt 0:00:29]} Kf6 {[%emt 0:00:47]} 1/2-1/2

[Event "94th Tradewise Hastings Congress"]
[Site "Hastings"]
[Date "2019.01.05"]
[Round "9"]
[White "Sugden, John N"]
[Black "Pitschka, Claus"]
[Result "1-0"]
[ECO "C41"]
[WhiteElo "2072"]
[BlackElo "2241"]
[Annotator "NA"]
[PlyCount "77"]
[EventDate "2018.12.28"]
[EventType "swiss"]
[EventCountry "ENG"]
[SourceTitle "playchess.com"]
[Source "ChessBase"]
[SourceQuality "1"]
[TimeControl "40/6000+30:3000+30"]

1. d4 {[%emt 0:00:00]} d6 {[%emt 0:09:08]} 2. e4 {[%emt 0:00:59]} Nf6 {[%emt 0:00:10]} 3. Nc3 {[%emt 0:00:42]} Nbd7 {[%emt 0:00:09]} 4. Nf3 {[%emt 0:01:54]} e5 {[%emt 0:00:23]} 5. Bc4 {[%emt 0:01:22]} Be7 {[%emt 0:00:49]} 6. O-O {[%emt 0:02:12]} O-O {[%emt 0:03:08]} 7. a4 {[%emt 0:02:24]} c6 {[%emt 0:01:44]} 8. Bb3 {[%emt 0:07:27]} b6 {[%emt 0:08:18]} 9. Re1 {[%emt 0:02:01]} a6 {[%emt 0:01:07]} 10. h3 {[%emt 0:08:13]} Bb7 {[%emt 0:03:25]} 11. dxe5 {[%emt 0:14:04]} dxe5 {[%emt 0:03:00]} 12. Be3 {[%emt 0:03:06]} b5 {[%emt 0:05:34]} 13. axb5 {[%emt 0:18:37]} axb5 {[%emt 0:00:14]} 14. Rxa8 {[%emt 0:02:25]} Qxa8 {[%emt 0:03:10]} 15. Nd2 {[%emt 0:04:52]} Bc5 {[%emt 0:08:08]} 16. Bxc5 {[%emt 0:04:47]} Nxc5 {[%emt 0:00:15]} 17. Qe2 {[%emt 0:00:44]} Qd8 {[%emt 0:23:53]} 18. Rd1 {[%emt 0:09:51]} Qe7 {[%emt 0:03:03]} 19. f3 {[%emt 0:03:43]} b4 {[%emt 0:05:11]} 20. Na4 {[%emt 0:02:55]} Ncd7 {[%emt 0:06:04]} 21. Bc4 {[%emt 0:02:34]} Nh5 {[%emt 0:01:36]} 22. Qf2 {[%emt 0:01:06]} Nf4 {[%emt 0:02:36]} 23. Nf1 {[%emt 0:01:34]} Bc8 {[%emt 0:03:57]} 24. Kh2 {[%emt 0:01:44]} Re8 {[%emt 0:03:40]} 25. b3 {[%emt 0:01:28]} Nf8 {[%emt 0:01:09]} 26. Nc5 {[%emt 0:02:17]} N8g6 {[%emt 0:01:37]} 27. Nd3 {[%emt 0:01:06]} Rd8 {[%emt 0:02:33]} 28. Rd2 {[%emt 0:01:00]} Nxd3 {[%emt 0:03:39]} 29. Rxd3 {[%emt 0:00:46]} Rxd3 {[%emt 0:01:58]} 30. Bxd3 {[%emt 0:00:08]} h5 {[%emt 0:00:10]} 31. Ng3 {[%emt 0:02:26]} Nf4 {[%emt 0:02:41]} 32. Bf1 {[%emt 0:01:09]} Qd6 {[%emt 0:00:42]} 33. Qe3 {[%emt 0:04:18]} Qd1 {[%emt 0:02:05]} 34. Bd3 {[%emt 0:00:54]} Nxd3 {[%emt 0:00:57]} 35. cxd3 {[%emt 0:00:16]} Qxb3 {[%emt 0:00:34]} 36. Nxh5 {[%emt 0:00:41]} Qe6 {[%emt 0:00:39]} 37. Qg5 {[%emt 0:00:36]} g6 {[%emt 0:00:06]} 38. Qd8+ {[%emt 0:01:00]} Kh7 {[%emt 0:00:16]} 39. Nf6+ {[%emt 0:00:30]} 1-0

[Event "94th Tradewise Hastings Congress"]
[Site "Hastings"]
[Date "2019.01.05"]
[Round "9"]
[White "Comellas Blanchart, Jordi"]
[Black "Byrn, Carsten"]
[Result "1-0"]
[ECO "A62"]
[WhiteElo "2055"]
[BlackElo "1959"]
[Annotator "NA"]
[PlyCount "110"]
[EventDate "2018.12.28"]
[EventType "swiss"]
[EventCountry "ENG"]
[SourceTitle "playchess.com"]
[Source "ChessBase"]
[SourceQuality "1"]
[TimeControl "40/6000+30:3000+30"]

1. d4 {[%emt 0:00:00]} Nf6 {[%emt 0:00:00]} 2. c4 {[%emt 0:00:00]} c5 {[%emt 0:00:00]} 3. d5 {[%emt 0:00:00]} g6 {[%emt 0:00:01]} 4. Nc3 {[%emt 0:00:07]} Bg7 {[%emt 0:00:17]} 5. Nf3 {[%emt 0:00:12]} O-O {[%emt 0:00:09]} 6. g3 {[%emt 0:00:07]} e6 {[%emt 0:00:23]} 7. Bg2 {[%emt 0:00:11]} exd5 {[%emt 0:00:07]} 8. cxd5 {[%emt 0:00:10]} d6 {[%emt 0:00:20]} 9. O-O {[%emt 0:00:16]} h6 {[%emt 0:00:12]} 10. Re1 {[%emt 0:02:56]} Re8 {[%emt 0:00:59]} 11. Nd2 {[%emt 0:07:56]} a6 {[%emt 0:00:32]} 12. a4 {[%emt 0:00:07]} Nbd7 {[%emt 0:03:05]} 13. Nc4 {[%emt 0:04:03]} Nb6 {[%emt 0:01:07]} 14. Na3 {[%emt 0:03:06]} g5 {[%emt 0:03:34]} 15. h3 {[%emt 0:05:40]} Bf5 {[%emt 0:01:03]} 16. e4 {[%emt 0:02:18]} Bg6 {[%emt 0:01:43]} 17. a5 {[%emt 0:03:40]} Nbd7 {[%emt 0:00:33]} 18. Nc4 {[%emt 0:01:11]} Qc7 {[%emt 0:06:34]} 19. Bd2 {[%emt 0:28:21]} b5 {[%emt 0:11:48]} 20. axb6 {[%emt 0:01:15]} Nxb6 {[%emt 0:00:16]} 21. Na5 {[%emt 0:00:39]} Nfd7 {[%emt 0:03:00]} 22. f4 {[%emt 0:14:38]} Bd4+ {[%emt 0:18:21]} 23. Kh2 {[%emt 0:00:27]} f6 {[%emt 0:01:27]} 24. Nc6 {[%emt 0:04:55]} Nc4 {[%emt 0:02:49]} 25. b3 {[%emt 0:01:13]} Nxd2 {[%emt 0:02:10]} 26. Qxd2 {[%emt 0:00:09]} Bxc3 {[%emt 0:03:40]} 27. Qxc3 {[%emt 0:00:06]} Kg7 {[%emt 0:03:21]} 28. Re3 {[%emt 0:07:29]} Qb6 {[%emt 0:08:54]} 29. Rae1 {[%emt 0:02:05]} gxf4 {[%emt 0:01:27]} 30. gxf4 {[%emt 0:00:14]} Nb8 {[%emt 0:05:04]} 31. e5 {[%emt 0:03:09]} Nxc6 {[%emt 0:04:35]} 32. dxc6 {[%emt 0:05:29]} dxe5 {[%emt 0:03:32]} 33. fxe5 {[%emt 0:00:12]} Qb4 {[%emt 0:00:40]} 34. exf6+ {[%emt 0:01:05]} Kf8 {[%emt 0:02:10]} 35. Rxe8+ {[%emt 0:02:05]} Rxe8 {[%emt 0:00:03]} 36. Rxe8+ {[%emt 0:00:35]} Bxe8 {[%emt 0:00:46]} 37. Qxb4 {[%emt 0:02:40]} cxb4 {[%emt 0:00:03]} 38. c7 {[%emt 0:00:12]} Bd7 {[%emt 0:00:31]} 39. Bb7 {[%emt 0:00:07]} a5 {[%emt 0:01:07]} 40. c8=Q+ {[%emt 0:00:10]} Bxc8 {[%emt 0:00:12]} 41. Bxc8 {[%emt 0:50:03]} Kf7 {[%emt 0:50:07]} 42. Bd7 {[%emt 0:00:14]} Kxf6 {[%emt 0:00:08]} 43. Kg3 {[%emt 0:00:14]} Kg5 {[%emt 0:01:11]} 44. h4+ {[%emt 0:00:46]} Kf6 {[%emt 0:00:26]} 45. Kg4 {[%emt 0:00:15]} Kg7 {[%emt 0:00:30]} 46. Kh5 {[%emt 0:00:07]} Kh7 {[%emt 0:00:36]} 47. Bb5 {[%emt 0:00:30]} Kg7 {[%emt 0:00:18]} 48. Bd3 {[%emt 0:00:05]} Kh8 {[%emt 0:00:28]} 49. Kxh6 {[%emt 0:00:09]} Kg8 {[%emt 0:00:15]} 50. Bb5 {[%emt 0:00:25]} Kh8 {[%emt 0:00:11]} 51. Kg6 {[%emt 0:00:14]} Kg8 {[%emt 0:00:21]} 52. Kf6 {[%emt 0:00:05]} Kh7 {[%emt 0:00:24]} 53. Ke5 {[%emt 0:00:10]} Kh6 {[%emt 0:00:20]} 54. Kd4 {[%emt 0:00:04]} a4 {[%emt 0:01:22]} 55. bxa4 {[%emt 0:00:32]} b3 {[%emt 0:00:12]} 1-0

[Event "94th Tradewise Hastings Congress"]
[Site "Hastings"]
[Date "2019.01.05"]
[Round "9"]
[White "Armstrong, Malcolm J"]
[Black "Byron, Alan M"]
[Result "0-1"]
[ECO "D30"]
[WhiteElo "2052"]
[BlackElo "2157"]
[Annotator "NA"]
[PlyCount "86"]
[EventDate "2018.12.28"]
[EventType "swiss"]
[EventCountry "ENG"]
[SourceTitle "playchess.com"]
[Source "ChessBase"]
[SourceQuality "1"]
[TimeControl "40/6000+30:3000+30"]

1. d4 {[%emt 0:00:00]} Nf6 {[%emt 0:02:46]} 2. Nf3 {[%emt 0:00:00]} d5 {[%emt 0:01:21]} 3. c4 {[%emt 0:00:00]} c6 {[%emt 0:00:25]} 4. e3 {[%emt 0:03:22]} e6 {[%emt 0:01:22]} 5. Nbd2 {[%emt 0:03:59]} Nbd7 {[%emt 0:00:15]} 6. Bd3 {[%emt 0:01:04]} Bd6 {[%emt 0:00:59]} 7. O-O {[%emt 0:00:19]} O-O {[%emt 0:00:07]} 8. b3 {[%emt 0:05:32]} e5 {[%emt 0:04:11]} 9. cxd5 {[%emt 0:02:39]} cxd5 {[%emt 0:00:52]} 10. dxe5 {[%emt 0:02:24]} Nxe5 {[%emt 0:00:16]} 11. Be2 {[%emt 0:00:28]} Qe7 {[%emt 0:07:40]} 12. Bb2 {[%emt 0:00:48]} Nc6 {[%emt 0:02:20]} 13. Rc1 {[%emt 0:16:55]} Ba3 {[%emt 0:08:29]} 14. Qc2 {[%emt 0:04:25]} Bg4 {[%emt 0:06:11]} 15. Bxa3 {[%emt 0:07:41]} Qxa3 {[%emt 0:02:11]} 16. Nb1 {[%emt 0:04:50]} Qe7 {[%emt 0:02:36]} 17. Rfd1 {[%emt 0:02:40]} Rad8 {[%emt 0:03:42]} 18. Nd4 {[%emt 0:04:00]} Nxd4 {[%emt 0:02:20]} 19. Rxd4 {[%emt 0:01:25]} Rc8 {[%emt 0:00:11]} 20. Nc3 {[%emt 0:01:42]} Rxc3 {[%emt 0:05:10]} 21. Qxc3 {[%emt 0:00:23]} Bxe2 {[%emt 0:00:06]} 22. Qc5 {[%emt 0:06:58]} Qxc5 {[%emt 0:04:35]} 23. Rxc5 {[%emt 0:00:16]} Bg4 {[%emt 0:06:35]} 24. f3 {[%emt 0:05:38]} Bd7 {[%emt 0:11:04]} 25. g4 {[%emt 0:04:45]} h6 {[%emt 0:04:15]} 26. h4 {[%emt 0:00:50]} Bc6 {[%emt 0:00:09]} 27. Ra5 {[%emt 0:00:25]} a6 {[%emt 0:00:49]} 28. b4 {[%emt 0:01:36]} Ne8 {[%emt 0:06:46]} 29. Kf2 {[%emt 0:06:08]} Nc7 {[%emt 0:01:25]} 30. Rd2 {[%emt 0:00:31]} Re8 {[%emt 0:01:41]} 31. Rc5 {[%emt 0:02:06]} Re7 {[%emt 0:04:17]} 32. Rc1 {[%emt 0:03:03]} Kf8 {[%emt 0:01:08]} 33. Rc3 {[%emt 0:05:11]} Re6 {[%emt 0:04:08]} 34. Rd1 {[%emt 0:06:36]} Rf6 {[%emt 0:03:16]} 35. Rcc1 {[%emt 0:04:06]} Ne6 {[%emt 0:02:55]} 36. Kg3 {[%emt 0:00:58]} g5 {[%emt 0:01:45]} 37. h5 {[%emt 0:02:06]} d4 {[%emt 0:02:37]} 38. e4 {[%emt 0:00:17]} Nf4 {[%emt 0:00:06]} 39. Rd2 {[%emt 0:02:20]} d3 {[%emt 0:03:45]} 40. Kf2 {[%emt 0:00:57]} Ne2 {[%emt 0:03:01]} 41. Rc4 {[%emt 0:02:28]} b5 {[%emt 0:07:09]} 42. Rxc6 {[%emt 0:00:35]} Rxc6 {[%emt 0:00:07]} 43. Rxd3 {[%emt 0:00:09]} Nf4 {[%emt 0:00:05]} 0-1

[Event "94th Tradewise Hastings Congress"]
[Site "Hastings"]
[Date "2019.01.05"]
[Round "9"]
[White "Norinkeviciute, Rasa"]
[Black "Fowler, David"]
[Result "1-0"]
[ECO "A20"]
[WhiteElo "2028"]
[BlackElo "1929"]
[Annotator "NA"]
[PlyCount "87"]
[EventDate "2018.12.28"]
[EventType "swiss"]
[EventCountry "ENG"]
[SourceTitle "playchess.com"]
[Source "ChessBase"]
[SourceQuality "1"]
[TimeControl "40/6000+30:3000+30"]

1. c4 {[%emt 0:00:00]} e5 {[%emt 0:00:00]} 2. g3 {[%emt 0:00:15]} Nf6 {[%emt 0:00:00]} 3. Bg2 {[%emt 0:00:07]} c6 {[%emt 0:00:00]} 4. d4 {[%emt 0:00:04]} Bb4+ {[%emt 0:00:03]} 5. Bd2 {[%emt 0:00:09]} Bxd2+ {[%emt 0:00:06]} 6. Qxd2 {[%emt 0:01:01]} d6 {[%emt 0:00:08]} 7. Nc3 {[%emt 0:07:16]} Qe7 {[%emt 0:05:08]} 8. e4 {[%emt 0:07:00]} Be6 {[%emt 0:04:06]} 9. d5 {[%emt 0:05:45]} cxd5 {[%emt 0:00:36]} 10. cxd5 {[%emt 0:00:04]} Bd7 {[%emt 0:02:48]} 11. Nge2 {[%emt 0:08:44]} O-O {[%emt 0:04:07]} 12. O-O {[%emt 0:02:14]} a5 {[%emt 0:04:00]} 13. a3 {[%emt 0:13:54]} a4 {[%emt 0:04:08]} 14. Nc1 {[%emt 0:06:59]} Ne8 {[%emt 0:09:58]} 15. Nd3 {[%emt 0:04:12]} g6 {[%emt 0:03:13]} 16. f4 {[%emt 0:00:58]} f6 {[%emt 0:00:39]} 17. Rf2 {[%emt 0:08:34]} Ng7 {[%emt 0:02:59]} 18. Raf1 {[%emt 0:04:30]} Na6 {[%emt 0:00:39]} 19. Qe3 {[%emt 0:00:40]} Nc5 {[%emt 0:07:41]} 20. Nxc5 {[%emt 0:14:00]} dxc5 {[%emt 0:00:16]} 21. fxe5 {[%emt 0:04:09]} fxe5 {[%emt 0:00:16]} 22. Rxf8+ {[%emt 0:00:27]} Rxf8 {[%emt 0:00:07]} 23. Rxf8+ {[%emt 0:00:07]} Qxf8 {[%emt 0:01:24]} 24. Qd3 {[%emt 0:02:27]} Ne8 {[%emt 0:01:56]} 25. Qc4 {[%emt 0:03:09]} b6 {[%emt 0:01:39]} 26. Qa6 {[%emt 0:02:15]} Qh6 {[%emt 0:04:28]} 27. Qxb6 {[%emt 0:03:33]} Qc1+ {[%emt 0:02:08]} 28. Kf2 {[%emt 0:01:37]} Bg4 {[%emt 0:08:42]} 29. Bf3 {[%emt 0:03:23]} Bxf3 {[%emt 0:06:43]} 30. Kxf3 {[%emt 0:00:09]} Qf1+ {[%emt 0:01:39]} 31. Ke3 {[%emt 0:02:38]} Kg7 {[%emt 0:12:12]} 32. Ne2 {[%emt 0:03:10]} Nf6 {[%emt 0:00:40]} 33. Qe6 {[%emt 0:01:04]} h5 {[%emt 0:04:47]} 34. h3 {[%emt 0:01:19]} g5 {[%emt 0:04:33]} 35. Qxe5 {[%emt 0:00:41]} g4 {[%emt 0:00:26]} 36. hxg4 {[%emt 0:00:29]} hxg4 {[%emt 0:00:15]} 37. Qg5+ {[%emt 0:00:28]} Kf7 {[%emt 0:00:13]} 38. Qf4 {[%emt 0:00:12]} Qd1 {[%emt 0:00:53]} 39. e5 {[%emt 0:00:39]} Qb3+ {[%emt 0:00:08]} 40. Kf2 {[%emt 0:00:24]} Qf3+ {[%emt 0:00:36]} 41. Qxf3 {[%emt 0:50:32]} gxf3 {[%emt 0:50:05]} 42. exf6 {[%emt 0:00:00]} fxe2 {[%emt 0:00:00]} 43. Kxe2 {[%emt 0:00:00]} Kxf6 {[%emt 0:00:00]} 44. Kd3 {[%emt 0:00:00]} 1-0

[Event "94th Tradewise Hastings Congress"]
[Site "Hastings"]
[Date "2019.01.05"]
[Round "9"]
[White "Midhun, P U"]
[Black "Derakhshani, Borna"]
[Result "1-0"]
[ECO "A05"]
[WhiteElo "2010"]
[BlackElo "2325"]
[Annotator "NA"]
[PlyCount "65"]
[EventDate "2018.12.28"]
[EventType "swiss"]
[EventCountry "ENG"]
[SourceTitle "playchess.com"]
[Source "ChessBase"]
[SourceQuality "1"]
[TimeControl "40/6000+30:3000+30"]

1. Nf3 {[%emt 0:00:00]} Nf6 {[%emt 0:16:12]} 2. g3 {[%emt 0:00:00]} d5 {[%emt 0:00:33]} 3. d4 {[%emt 0:00:00]} e6 {[%emt 0:00:42]} 4. Bg2 {[%emt 0:00:00]} b5 {[%emt 0:00:20]} 5. O-O {[%emt 0:01:29]} Bb7 {[%emt 0:00:18]} 6. b3 {[%emt 0:00:42]} Nbd7 {[%emt 0:00:30]} 7. c4 {[%emt 0:00:44]} bxc4 {[%emt 0:09:41]} 8. bxc4 {[%emt 0:00:03]} dxc4 {[%emt 0:00:12]} 9. Qa4 {[%emt 0:00:05]} Bd6 {[%emt 0:03:32]} 10. Ba3 {[%emt 0:09:14]} O-O {[%emt 0:01:20]} 11. Qxc4 {[%emt 0:02:02]} Nb6 {[%emt 0:03:00]} 12. Qc1 {[%emt 0:01:17]} Ba6 {[%emt 0:07:28]} 13. Re1 {[%emt 0:08:57]} Nc4 {[%emt 0:07:01]} 14. Bc5 {[%emt 0:10:49]} e5 {[%emt 0:23:21]} 15. Nfd2 {[%emt 0:19:57]} Bxc5 {[%emt 0:04:31]} 16. dxc5 {[%emt 0:00:13]} Qd4 {[%emt 0:10:22]} 17. Nb3 {[%emt 0:01:10]} Qd7 {[%emt 0:00:28]} 18. Bxa8 {[%emt 0:01:55]} Rxa8 {[%emt 0:00:02]} 19. N1d2 {[%emt 0:05:05]} Qh3 {[%emt 0:01:39]} 20. Nf1 {[%emt 0:01:45]} e4 {[%emt 0:04:10]} 21. Qg5 {[%emt 0:02:23]} e3 {[%emt 0:02:45]} 22. f3 {[%emt 0:00:56]} h6 {[%emt 0:01:33]} 23. Qh4 {[%emt 0:01:26]} Qf5 {[%emt 0:00:22]} 24. Rac1 {[%emt 0:05:25]} g5 {[%emt 0:00:06]} 25. Qd4 {[%emt 0:00:46]} Qe6 {[%emt 0:00:23]} 26. c6 {[%emt 0:01:45]} Qd6 {[%emt 0:06:49]} 27. Rxc4 {[%emt 0:00:39]} Bxc4 {[%emt 0:00:01]} 28. Qxc4 {[%emt 0:00:11]} Re8 {[%emt 0:00:05]} 29. Qc5 {[%emt 0:04:24]} Qe6 {[%emt 0:00:15]} 30. Nd4 {[%emt 0:01:24]} Qxa2 {[%emt 0:00:31]} 31. Nf5 {[%emt 0:00:15]} Nd5 {[%emt 0:02:13]} 32. N1xe3 {[%emt 0:00:38]} Qd2 {[%emt 0:00:58]} 33. Rd1 {[%emt 0:01:55]} 1-0

[Event "94th Tradewise Hastings Congress"]
[Site "Hastings"]
[Date "2019.01.05"]
[Round "9"]
[White "Spanton, Tim R"]
[Black "White, Stuart A"]
[Result "0-1"]
[ECO "C11"]
[WhiteElo "1954"]
[BlackElo "2096"]
[Annotator "NA"]
[PlyCount "82"]
[EventDate "2018.12.28"]
[EventType "swiss"]
[EventCountry "ENG"]
[SourceTitle "playchess.com"]
[Source "ChessBase"]
[SourceQuality "1"]
[TimeControl "40/6000+30:3000+30"]

1. e4 {[%emt 0:00:00]} e6 {[%emt 0:00:00]} 2. d4 {[%emt 0:00:00]} d5 {[%emt 0:00:00]} 3. Nc3 {[%emt 0:00:00]} Nf6 {[%emt 0:00:00]} 4. e5 {[%emt 0:00:00]} Nfd7 {[%emt 0:00:00]} 5. Nf3 {[%emt 0:00:00]} c5 {[%emt 0:00:09]} 6. dxc5 {[%emt 0:00:04]} Nc6 {[%emt 0:00:37]} 7. Bf4 {[%emt 0:00:06]} Bxc5 {[%emt 0:00:26]} 8. Bd3 {[%emt 0:00:25]} f6 {[%emt 0:00:22]} 9. exf6 {[%emt 0:00:25]} Nxf6 {[%emt 0:00:08]} 10. O-O {[%emt 0:00:12]} O-O {[%emt 0:01:01]} 11. Re1 {[%emt 0:02:00]} Bxf2+ {[%emt 0:25:02]} 12. Kxf2 {[%emt 0:00:20]} Ng4+ {[%emt 0:00:02]} 13. Kg3 {[%emt 0:01:23]} e5 {[%emt 0:01:14]} 14. Bg5 {[%emt 0:03:18]} Qd6 {[%emt 0:22:40]} 15. Bxh7+ {[%emt 0:02:44]} Kxh7 {[%emt 0:01:24]} 16. Qxd5 {[%emt 0:00:11]} Qg6 {[%emt 0:04:23]} 17. Ne4 {[%emt 0:04:29]} Nf6 {[%emt 0:10:23]} 18. Qc4 {[%emt 0:04:23]} Bf5 {[%emt 0:01:50]} 19. Nxf6+ {[%emt 0:05:18]} gxf6 {[%emt 0:00:30]} 20. Qh4+ {[%emt 0:12:27]} Kg7 {[%emt 0:01:33]} 21. Rad1 {[%emt 0:00:45]} e4 {[%emt 0:04:08]} 22. Qh6+ {[%emt 0:06:50]} Qxh6 {[%emt 0:00:18]} 23. Bxh6+ {[%emt 0:00:03]} Kxh6 {[%emt 0:00:14]} 24. Nh4 {[%emt 0:00:14]} Kg5 {[%emt 0:07:10]} 25. Rd5 {[%emt 0:00:39]} Ne5 {[%emt 0:00:08]} 26. Nxf5 {[%emt 0:05:24]} Kxf5 {[%emt 0:00:08]} 27. Rd4 {[%emt 0:02:05]} Rg8+ {[%emt 0:01:11]} 28. Kf2 {[%emt 0:00:12]} Rac8 {[%emt 0:02:42]} 29. Re2 {[%emt 0:01:28]} Rc4 {[%emt 0:02:06]} 30. Rd5 {[%emt 0:01:26]} Rgc8 {[%emt 0:01:04]} 31. Rb5 {[%emt 0:02:29]} b6 {[%emt 0:00:34]} 32. c3 {[%emt 0:00:19]} Ke6 {[%emt 0:00:42]} 33. h3 {[%emt 0:01:10]} f5 {[%emt 0:01:03]} 34. g3 {[%emt 0:02:08]} R8c5 {[%emt 0:00:37]} 35. Rxc5 {[%emt 0:00:17]} Rxc5 {[%emt 0:00:05]} 36. Ke3 {[%emt 0:00:46]} Rd5 {[%emt 0:00:55]} 37. h4 {[%emt 0:01:32]} Rd3+ {[%emt 0:00:18]} 38. Kf2 {[%emt 0:00:14]} Ng4+ {[%emt 0:00:22]} 39. Kg2 {[%emt 0:00:18]} Ke5 {[%emt 0:00:15]} 40. Kh3 {[%emt 0:01:06]} e3 {[%emt 0:00:41]} 41. h5 {[%emt 0:50:30]} Rd2 {[%emt 0:50:25]} 0-1

[Event "94th Tradewise Hastings Congress"]
[Site "Hastings"]
[Date "2019.01.05"]
[Round "9"]
[White "Faulks, Nick"]
[Black "Eames, Robert S"]
[Result "0-1"]
[ECO "B44"]
[WhiteElo "1917"]
[BlackElo "2167"]
[Annotator "NA"]
[PlyCount "80"]
[EventDate "2018.12.28"]
[EventType "swiss"]
[EventCountry "ENG"]
[SourceTitle "playchess.com"]
[Source "ChessBase"]
[SourceQuality "1"]
[TimeControl "40/6000+30:3000+30"]

1. e4 {[%emt 0:00:00]} c5 {[%emt 0:00:00]} 2. Nf3 {[%emt 0:00:00]} e6 {[%emt 0:00:00]} 3. d4 {[%emt 0:00:00]} cxd4 {[%emt 0:00:01]} 4. Nxd4 {[%emt 0:00:00]} Nc6 {[%emt 0:00:08]} 5. Nb5 {[%emt 0:00:38]} d6 {[%emt 0:00:15]} 6. c4 {[%emt 0:00:27]} Nf6 {[%emt 0:00:22]} 7. N1c3 {[%emt 0:00:17]} a6 {[%emt 0:00:16]} 8. Na3 {[%emt 0:00:30]} Be7 {[%emt 0:00:15]} 9. Be2 {[%emt 0:00:19]} O-O {[%emt 0:00:07]} 10. O-O {[%emt 0:00:07]} b6 {[%emt 0:00:07]} 11. Be3 {[%emt 0:12:21]} Bb7 {[%emt 0:01:31]} 12. f3 {[%emt 0:02:11]} Ne5 {[%emt 0:01:19]} 13. Qe1 {[%emt 0:06:27]} Qc7 {[%emt 0:02:59]} 14. Qf2 {[%emt 0:04:58]} Ned7 {[%emt 0:03:56]} 15. Rac1 {[%emt 0:00:47]} Rac8 {[%emt 0:00:46]} 16. Rfd1 {[%emt 0:01:32]} Rfe8 {[%emt 0:00:40]} 17. Kh1 {[%emt 0:08:59]} Qb8 {[%emt 0:09:02]} 18. Bf1 {[%emt 0:15:03]} Bd8 {[%emt 0:00:57]} 19. b4 {[%emt 0:14:23]} Bc7 {[%emt 0:01:19]} 20. Qh4 {[%emt 0:03:51]} d5 {[%emt 0:02:19]} 21. exd5 {[%emt 0:01:01]} exd5 {[%emt 0:01:14]} 22. Bg1 {[%emt 0:00:52]} Bf4 {[%emt 0:03:48]} 23. Rc2 {[%emt 0:01:23]} g5 {[%emt 0:07:21]} 24. Qf2 {[%emt 0:01:26]} Be3 {[%emt 0:02:06]} 25. Qg3 {[%emt 0:00:40]} Qxg3 {[%emt 0:04:42]} 26. hxg3 {[%emt 0:00:06]} d4 {[%emt 0:02:39]} 27. Nd5 {[%emt 0:01:34]} Bxd5 {[%emt 0:06:01]} 28. cxd5 {[%emt 0:01:06]} Nxd5 {[%emt 0:02:23]} 29. Bxa6 {[%emt 0:09:16]} Rcd8 {[%emt 0:04:12]} 30. Bb5 {[%emt 0:06:39]} Re6 {[%emt 0:07:02]} 31. Bxe3 {[%emt 0:04:16]} Nxe3 {[%emt 0:05:44]} 32. Rxd4 {[%emt 0:01:06]} Nxc2 {[%emt 0:00:30]} 33. Nxc2 {[%emt 0:00:09]} Rc8 {[%emt 0:01:29]} 34. Bd3 {[%emt 0:02:06]} Ne5 {[%emt 0:03:37]} 35. Be4 {[%emt 0:05:33]} Rc3 {[%emt 0:00:46]} 36. Rd5 {[%emt 0:03:25]} g4 {[%emt 0:03:37]} 37. Kg1 {[%emt 0:01:20]} gxf3 {[%emt 0:03:48]} 38. Rd8+ {[%emt 0:01:55]} Kg7 {[%emt 0:00:16]} 39. Nd4 {[%emt 0:00:36]} f2+ {[%emt 0:00:31]} 40. Kf1 {[%emt 0:01:11]} Ng4 {[%emt 0:10:12]} 0-1